bitfinex/quotes_ETHUSD_20251218
["timestamp","ask_amount","ask_price","bid_price","bid_amount"]
[1766091326554,0.0358219,2788.3,2787.4,2.3391]
[1766091326848,0.58,2788.5,2787.4,2.3391]
[1766091327017,4.16622715,2788.5,2787.4,2.3391]
[1766091327214,0.77523161,2788.4,2787.1,0.46438023]
[1766091327414,0.58,2788.5,2787.1,0.46438023]
[1766091327616,0.58,2788.5,2787.4,3.4447]
[1766091327815,0.58,2788.5,2787.0,9.73203364]
[1766091327816,12.82586766,2789.8,2787.2,0.405504]
[1766091328054,12.82586766,2789.8,2787.8,2.3391]
[1766091328055,0.6158219,2788.9,2787.8,2.3391]
[1766091328262,0.6158219,2788.9,2787.9,3.4447]
[1766091328421,0.6158219,2788.9,2788.0,3.78917]
[1766091328754,0.0358219,2788.8,2787.0,3.58800791]
[1766091329056,7.1715433,2788.8,2787.5,1.1056]
[1766091329257,7.26085613,2788.8,2787.5,1.56998023]
[1766091329620,3.67508448,2788.8,2787.5,1.56998023]
[1766091329928,0.78407677,2788.7,2787.5,1.96288825]
[1766091330131,0.78407677,2788.7,2787.5,0.39290802]
[1766091330337,0.78407677,2788.7,2787.5,0.002]
[1766091330633,0.58,2788.7,2787.5,0.002]
[1766091330817,0.55369306,2789.2,2787.7,0.405504]
[1766091331023,0.58,2789.1,2787.8,0.46438023]
[1766091331328,0.08931283,2789.2,2788.2,1.1056]
[1766091331329,0.58,2789.0,2788.2,1.1056]
[1766091331518,0.58,2789.0,2787.9,3.4447]
[1766091331718,0.58,2789.0,2788.2,3.4447]
[1766091331932,0.58,2789.0,2788.1,2.3391]
[1766091332130,0.58,2789.0,2788.3,2.3391]
[1766091332323,0.58,2789.1,2788.3,2.3391]
[1766091332852,0.58,2789.1,2788.3,3.4447]
[1766091333254,0.58,2789.1,2788.3,3.78917]
[1766091333255,4.16539681,2789.1,2788.3,3.78917]
[1766091333951,0.0358219,2789.0,2787.7,3.4447]
[1766091334121,0.12513473,2789.0,2787.8,0.46438023]
[1766091334317,0.12513473,2789.0,2787.7,3.4447]
[1766091334549,0.12513473,2789.0,2787.8,0.46438023]
[1766091334944,0.08931283,2789.0,2787.8,0.46438023]
[1766091335145,4.36966893,2788.9,2787.8,0.46438023]
[1766091335350,4.36966893,2788.9,2787.6,1.1056]
[1766091335661,0.579,2788.8,2787.5,0.002]
[1766091335834,0.08931283,2789.0,2788.1,3.4447]
[1766091336043,0.58,2788.9,2787.8,0.46438023]
[1766091336353,1.00547527,2788.9,2787.8,0.46438023]
[1766091336654,0.579,2788.8,2787.9,2.3391]
[1766091336869,0.0358219,2788.7,2788.0,1.1056]
[1766091337353,0.579,2788.8,2788.0,1.1056]
[1766091337559,0.579,2788.8,2788.1,2.3391]
[1766091337764,0.579,2788.8,2787.5,1.04538023]
[1766091337765,0.579,2788.8,2787.6,3.4447]
[1766091337942,0.579,2788.8,2787.5,0.002]
[1766091337943,0.08931283,2788.6,2787.5,0.002]
[1766091338139,0.405504,2788.3,2786.9,3.4447]
[1766091338335,0.08931283,2788.1,2786.9,3.4447]
[1766091338532,0.08931283,2787.9,2786.9,3.4447]
[1766091338836,0.08931283,2787.9,2787.0,0.03588087]
[1766091339176,0.6158219,2787.8,2786.6,3.4447]
[1766091339327,7.17437312,2787.7,2786.6,3.4447]
[1766091339533,7.17437312,2787.7,2786.3,0.002]
[1766091339534,0.0358219,2787.6,2786.3,0.002]
[1766091340033,3.67649939,2787.7,2786.3,0.002]
[1766091340233,0.82019026,2787.6,2786.3,0.002]
[1766091340434,0.78436836,2787.6,2786.5,3.4447]
[1766091340959,0.58,2787.5,2786.8,3.4467]
[1766091342752,0.58,2787.5,2786.9,3.4981]
[1766091343567,0.08931283,2787.9,2786.9,3.4981]
[1766091343764,0.579,2787.8,2787.0,3.4981]
[1766091344471,0.579,2787.8,2787.2,3.4981]
[1766091344634,0.579,2787.8,2786.8,0.002]
[1766091344635,0.579,2787.8,2786.9,0.46438023]
[1766091345246,0.579,2787.8,2786.8,3.5001]
[1766091345247,0.579,2787.8,2786.8,0.002]
[1766091345451,0.579,2787.7,2787.0,3.96248023]
[1766091347843,0.579,2787.7,2786.8,0.002]
[1766091348059,0.41670808,2787.6,2786.8,0.46638023]
[1766091348398,0.0358219,2787.5,2786.8,0.002]
[1766091348555,0.001,2787.8,2786.3,0.002]
[1766091348556,0.579,2787.4,2786.3,0.002]
[1766091348756,0.579,2787.4,2786.6,0.46438023]
[1766091349067,0.579,2787.4,2786.6,3.96248023]
[1766091349277,0.579,2787.4,2786.7,3.4981]
[1766091351246,0.001,2787.8,2786.7,3.58838299]
[1766091351443,0.001,2787.8,2786.9,2.84048023]
[1766091351643,0.001,2787.8,2787.3,3.4981]
[1766091351890,0.001,2787.8,2787.5,3.4981]
[1766091352051,0.001,2787.8,2787.3,0.34981]
[1766091352252,0.001,2787.8,2787.1,0.46438023]
[1766091352454,0.001,2787.8,2787.1,1.58638023]
[1766091352654,0.001,2787.8,2786.7,3.4981]
[1766091352872,0.579,2787.7,2786.7,0.4878852]
[1766091353055,0.579,2787.7,2786.8,3.4981]
[1766091353277,0.579,2787.7,2787.1,0.46438023]
[1766091353578,0.08931283,2787.5,2786.5,3.4981]
[1766091353968,3.62339454,2787.4,2786.2,3.4981]
[1766091354146,3.62339454,2787.4,2785.9,0.579]
[1766091354147,0.0358219,2787.4,2786.3,3.5001]
[1766091354676,3.67679603,2787.5,2786.3,3.5001]
[1766091355280,0.08931283,2787.5,2786.3,2.3781]
[1766091355450,0.08931283,2787.5,2786.6,3.4981]
[1766091355789,0.001,2787.8,2786.7,2.84048023]
[1766091355990,3.58599255,2788.7,2787.4,2.3761]
[1766091356188,0.579,2788.7,2787.8,2.3761]
[1766091356360,1.04338023,2788.7,2787.8,2.3761]
[1766091356760,0.579,2788.7,2787.9,1.122]
[1766091356968,0.579,2788.7,2788.0,2.3761]
[1766091358851,0.579,2788.7,2788.1,3.4981]
[1766091360557,0.579,2788.7,2788.3,3.4981]
[1766091360757,0.579,2788.7,2787.5,0.46438023]
[1766091360758,0.001,2789.0,2787.0,9.15203364]
[1766091360957,0.08931283,2788.9,2787.6,0.46438023]
[1766091361156,0.08931283,2788.9,2786.9,0.46438023]
[1766091361157,0.08931283,2788.5,2786.9,0.46438023]
[1766091361387,0.08931283,2788.3,2787.4,0.46438023]
[1766091362096,0.579,2788.4,2787.2,1.1089]
[1766091362264,0.579,2788.4,2787.4,1.1089]
[1766091362458,0.08931283,2788.5,2787.5,2.3853]
[1766091362659,0.12513473,2788.9,2787.4,13.31860628]
[1766091362889,0.51847106,2788.9,2787.7,1.57328023]
[1766091363189,0.08931283,2786.5,2785.6,3.58984241]
[1766091363487,0.08931283,2786.4,2786.1,1.1089]
[1766091363686,0.08931283,2786.6,2786.2,2.3853]
[1766091363998,0.08931283,2786.3,2785.8,3.4942]
[1766091364181,0.08931283,2786.1,2785.8,3.4942]
[1766091364360,0.08931283,2786.3,2785.8,3.4942]
[1766091364697,0.08931283,2786.1,2785.8,3.4942]
[1766091365194,0.08931283,2786.1,2785.9,0.46438023]
[1766091365356,0.08931283,2786.1,2786.0,0.39585802]
[1766091365560,0.08931283,2786.2,2786.0,0.39585802]
[1766091365788,0.08931283,2785.7,2785.4,0.579]
[1766091365957,0.6148219,2785.6,2784.0,3.59192317]
[1766091366165,0.579,2785.5,2784.5,1.1089]
[1766091366365,0.405504,2785.9,2784.2,0.46438023]
[1766091366558,7.79508816,2785.8,2784.4,3.4942]
[1766091366762,0.86988423,2785.7,2784.4,3.4942]
[1766091367063,0.405504,2785.6,2784.5,0.46438023]
[1766091367261,0.58,2785.5,2784.6,0.39585802]
[1766091367500,0.46438023,2785.9,2784.4,2.84968023]
[1766091367501,4.05388715,2785.9,2784.4,2.84968023]
[1766091367687,1.0213259,2785.8,2784.5,1.1089]
[1766091367868,1.0213259,2785.8,2784.1,3.85339232]
[1766091367869,1.11063873,2785.8,2784.1,3.85339232]
[1766091368269,0.46438023,2785.9,2784.4,2.3853]
[1766091368580,3.58976199,2785.7,2784.6,3.4942]
[1766091368890,1.03638029,2785.6,2784.4,2.84968023]
[1766091369197,0.08931283,2786.0,2784.1,0.35919232]
[1766091369198,9.59335954,2785.5,2784.1,0.35919232]
[1766091369398,0.58,2785.4,2783.7,3.4942]
[1766091369572,0.6158219,2785.4,2783.7,0.46438023]
[1766091369776,0.6158219,2785.4,2784.0,1.1089]
[1766091369978,0.08931283,2785.8,2784.2,0.46438023]
[1766091370186,9.24134647,2786.4,2784.5,7.18261043]
[1766091370187,0.58,2785.7,2784.5,7.18261043]
[1766091370365,0.58,2785.6,2784.9,1.1089]
[1766091370566,0.0358219,2785.5,2784.6,1.18264127]
[1766091370766,0.0358219,2785.5,2784.5,3.4942]
[1766091370767,0.405504,2785.4,2783.7,3.4942]
[1766091370968,0.405504,2785.4,2784.2,1.1089]
[1766091371168,0.08931283,2785.5,2784.3,3.4942]
[1766091371370,0.58,2785.4,2784.3,3.4942]
[1766091371771,0.12513473,2785.3,2783.9,3.4942]
[1766091371967,0.405504,2785.2,2784.0,0.39585802]
[1766091372185,0.405504,2785.2,2783.8,1.1089]
[1766091372503,0.08931283,2785.1,2784.0,0.46438023]
[1766091372690,0.08931283,2784.8,2784.0,0.46438023]
[1766091372891,0.58,2784.7,2784.3,0.002]
[1766091373203,0.08931283,2784.8,2784.3,0.002]
[1766091373401,0.58,2784.6,2784.3,0.24188]
[1766091373603,0.08931283,2784.8,2784.3,0.002]
[1766091373779,2.90141398,2786.6,2784.3,0.002]
[1766091373780,0.08931283,2786.0,2784.3,0.002]
[1766091374110,0.08931283,2786.0,2784.9,2.3968]
[1766091374312,0.08931283,2786.0,2784.5,0.46438023]
[1766091374313,0.6158219,2785.9,2785.0,3.4877]
[1766091374716,4.20536099,2785.9,2785.0,3.4877]
[1766091375021,0.08931283,2785.6,2784.4,2.3968]
[1766091375304,0.08931283,2785.4,2784.5,1.0909]
[1766091375471,0.0358219,2785.3,2784.5,1.0909]
[1766091375671,0.08931283,2785.4,2784.4,2.3968]
[1766091375672,0.08931283,2785.4,2784.4,3.4877]
[1766091375880,0.58,2785.3,2784.3,0.46638023]
[1766091376108,0.58,2785.3,2784.5,1.0909]
[1766091376274,0.58,2785.3,2784.5,3.4877]
[1766091376474,0.0358219,2785.2,2784.5,3.4877]
[1766091376681,0.0358219,2785.2,2784.5,3.88310802]
[1766091376898,0.55369306,2785.6,2784.5,3.98669336]
[1766091376899,0.08931283,2785.6,2784.5,3.98669336]
[1766091377098,0.58,2785.6,2784.5,0.39540802]
[1766091377309,0.58,2785.6,2785.0,1.0909]
[1766091377502,0.58,2785.6,2785.0,3.4877]
[1766091377691,0.58,2785.8,2785.0,1.0909]
[1766091377892,0.58,2785.8,2785.2,3.4877]
[1766091378100,0.58,2785.8,2784.8,3.4877]
[1766091378282,0.58,2785.8,2784.9,0.34877]
[1766091378481,0.6158219,2785.8,2784.8,3.4877]
[1766091378691,0.08931283,2785.7,2784.8,3.4877]
[1766091378881,0.0358219,2785.6,2784.5,3.95208023]
[1766091379296,0.12513473,2785.7,2784.5,3.95208023]
[1766091379498,0.58,2785.6,2784.5,3.95208023]
[1766091379672,0.58,2785.6,2784.6,1.21872967]
[1766091380002,0.58,2785.8,2785.0,2.3968]
[1766091380205,0.58,2785.8,2785.1,3.4877]
[1766091381074,0.08931283,2786.2,2785.1,1.0909]
[1766091381276,0.58,2786.1,2785.1,1.0909]
[1766091381477,0.58,2786.1,2785.2,0.34877]
[1766091381708,1.04438023,2786.1,2785.2,0.34877]
[1766091381904,0.58,2786.1,2785.2,0.34877]
[1766091382107,0.58,2786.1,2785.2,3.83647]
[1766091382299,0.001,2785.8,2785.2,3.83647]
[1766091382497,0.001,2785.8,2785.3,0.383647]
[1766091382701,0.58,2785.8,2785.3,0.383647]
[1766091383002,0.6158219,2785.8,2784.9,3.4877]
[1766091383203,0.6158219,2785.8,2784.6,4.80984157]
[1766091383204,0.58,2785.8,2784.6,4.80984157]
[1766091383509,0.58,2785.8,2785.1,2.3968]
[1766091383709,0.579,2785.7,2784.8,1.0909]
[1766091383883,0.579,2785.7,2785.3,1.0909]
[1766091384080,0.58,2785.8,2785.3,1.0909]
[1766091384604,0.58,2785.8,2785.3,3.4877]
[1766091384904,0.58,2785.8,2784.7,4.0554255]
[1766091385202,0.58,2785.8,2784.9,2.3968]
[1766091385408,0.58,2785.8,2785.1,3.4877]
[1766091386397,0.58,2785.8,2784.8,0.48097749]
[1766091386611,0.58,2785.8,2785.2,3.4877]
[1766091387307,0.58,2785.8,2784.7,0.46438023]
[1766091387608,0.0358219,2785.7,2784.8,2.3968]
[1766091388014,0.58,2785.8,2784.8,3.4877]
[1766091388213,0.001,2785.8,2785.2,2.3968]
[1766091388515,0.579,2785.7,2785.0,2.3968]
[1766091388692,0.001,2785.8,2784.9,0.39520802]
[1766091388882,0.58,2785.8,2784.8,3.59088846]
[1766091389076,0.001,2785.8,2785.2,1.0909]
[1766091389309,0.001,2785.8,2784.9,3.59079134]
[1766091389480,0.08931283,2786.4,2785.3,2.3968]
[1766091389685,0.08931283,2786.4,2785.6,3.4877]
[1766091389997,3.58702871,2787.9,2787.1,1.77920353]
[1766091390198,4.16578609,2788.1,2785.6,2.3968]
[1766091390199,0.08931283,2787.6,2785.6,2.3968]
[1766091390392,0.08931283,2787.6,2786.0,2.3968]
[1766091390393,0.08931283,2787.2,2786.0,2.3968]
[1766091390599,0.08931283,2787.0,2786.0,2.3968]
[1766091390784,0.08931283,2787.0,2785.8,1.0909]
[1766091391317,0.08931283,2787.0,2785.8,0.34877]
[1766091391488,0.09031283,2787.0,2786.0,3.4877]
[1766091392013,0.0358219,2786.9,2786.0,3.4877]
[1766091392694,0.09031283,2787.0,2786.0,3.4877]
[1766091392917,0.09031283,2787.0,2786.1,3.4877]
[1766091393220,0.55469306,2787.0,2785.8,1.90405023]
[1766091393387,0.47585723,2786.9,2785.8,1.90405023]
[1766091393588,0.55469306,2787.0,2785.8,1.90405023]
[1766091393989,0.0358219,2786.9,2785.8,1.90405023]
[1766091394202,0.08931283,2786.8,2785.8,1.55528023]
[1766091394518,0.0358219,2786.7,2785.8,1.55528023]
[1766091394694,0.0358219,2786.7,2785.7,2.3968]
[1766091394695,0.08931283,2786.8,2785.9,2.3968]
[1766091394894,0.001,2787.0,2786.0,2.3968]
[1766091395106,0.58,2786.8,2786.0,3.4877]
[1766091395323,0.0358219,2786.7,2786.0,3.4877]
[1766091395533,0.0358219,2786.7,2785.5,2.3968]
[1766091395741,0.08931283,2786.6,2785.5,2.3968]
[1766091396027,0.08931283,2786.6,2784.5,0.002]
[1766091396028,0.08931283,2786.4,2785.2,2.3968]
[1766091396232,0.08931283,2786.2,2785.2,2.3968]
[1766091396429,0.58,2786.1,2785.3,0.46438023]
[1766091396587,0.58,2786.1,2785.2,3.4877]
[1766091396588,0.58,2786.1,2785.4,0.39520802]
[1766091396919,0.08931283,2786.8,2785.4,0.39520802]
[1766091397113,0.09031283,2787.0,2785.8,0.46438023]
[1766091397293,0.58,2786.9,2785.5,0.46438023]
[1766091397493,0.58,2786.9,2785.9,0.46438023]
[1766091397894,0.58,2786.9,2785.5,0.46438023]
[1766091398099,0.08931283,2786.4,2785.0,3.59057405]
[1766091398334,0.58,2786.3,2785.3,1.0909]
[1766091398488,0.58,2786.3,2785.5,3.4877]
[1766091398687,0.0358219,2786.2,2785.2,3.4877]
[1766091398892,0.58,2786.3,2785.3,0.46438023]
[1766091399114,0.58,2786.3,2785.3,2.86118023]
[1766091399316,0.58,2786.3,2785.4,0.28611802]
[1766091399506,0.58,2786.3,2785.5,3.4897]
[1766091400326,0.0358219,2786.2,2785.5,0.002]
[1766091401225,0.001,2786.8,2785.5,0.002]
[1766091401430,0.001,2786.8,2785.7,2.86118023]
[1766091401801,0.001,2786.8,2785.5,0.002]
[1766091402003,0.001,2786.8,2785.7,3.95208023]
[1766091402202,0.001,2786.8,2785.8,0.39520802]
[1766091402628,0.001,2786.8,2785.8,2.72140802]
[1766091402935,0.001,2786.8,2785.9,2.79058023]
[1766091403424,0.001,2786.8,2785.9,3.93598023]
[1766091404333,0.001,2786.8,2786.0,3.93598023]
[1766091404623,0.001,2786.8,2785.8,0.39520802]
[1766091404624,0.58,2786.7,2786.2,3.4716]
[1766091404852,0.58,2786.7,2786.3,2.3262]
[1766091404999,0.581,2786.8,2786.3,2.3262]
[1766091406119,0.581,2786.8,2786.1,0.44003605]
[1766091406319,0.581,2786.8,2786.1,3.4716]
[1766091406819,0.001,2786.8,2786.2,2.3262]
[1766091407021,0.58,2786.7,2786.3,2.3262]
[1766091407330,0.581,2786.8,2786.3,3.4716]
[1766091407713,0.581,2786.8,2785.7,4.05407804]
[1766091407714,0.001,2786.8,2786.5,1.1454]
[1766091407920,0.001,2786.8,2786.3,2.3262]
[1766091408099,0.001,2786.8,2786.3,2.55882]
[1766091408301,0.001,2786.8,2786.3,3.70422]
[1766091408499,0.001,2787.0,2786.3,0.23262]
[1766091408714,0.581,2787.0,2786.3,3.4716]
[1766091410044,0.581,2787.0,2786.4,3.4716]
[1766091410244,0.581,2787.0,2786.1,2.79058023]
[1766091410441,0.581,2787.0,2786.1,3.93598023]
[1766091410645,0.581,2787.0,2785.9,0.46438023]
[1766091410862,0.581,2787.0,2785.6,3.4716]
[1766091411153,0.41690149,2786.9,2785.9,3.93598023]
[1766091412262,0.67031283,2787.0,2785.9,3.93598023]
[1766091412418,4.25842602,2787.0,2785.9,3.93598023]
[1766091412620,0.67031283,2787.0,2785.9,3.93598023]
[1766091412827,0.67031283,2787.0,2786.0,1.60978023]
[1766091412828,0.09031283,2787.0,2786.0,1.60978023]
[1766091413025,0.579,2786.9,2785.9,3.4716]
[1766091413318,0.579,2786.9,2785.8,4.45948316]
[1766091413319,0.579,2786.9,2786.1,0.46438023]
[1766091413514,0.579,2786.9,2785.9,2.79058023]
[1766091413754,0.579,2786.9,2786.0,1.1454]
[1766091413921,0.579,2786.9,2786.1,3.4716]
[1766091414253,0.579,2786.9,2786.2,0.34716]
[1766091414617,0.579,2786.9,2786.1,3.4716]
[1766091414818,0.579,2786.9,2785.7,0.85817825]
[1766091415117,0.58,2787.0,2785.8,0.03589633]
[1766091415332,0.58,2787.0,2786.4,1.1454]
[1766091415664,0.58,2787.0,2786.6,3.4716]
[1766091416122,0.001,2787.0,2786.6,3.81876]
[1766091416540,0.001,2787.0,2786.7,3.4716]
[1766091416926,0.001,2787.0,2786.6,0.34716]
[1766091417131,0.001,2787.0,2786.4,0.46438023]
[1766091417351,0.001,2787.0,2786.3,2.3262]
[1766091417715,0.001,2787.0,2786.0,1.1454]
[1766091417916,0.001,2787.0,2785.9,2.3282]
[1766091418352,0.001,2787.0,2785.9,2.79258023]
[1766091418519,0.001,2787.0,2786.2,1.1454]
[1766091418722,0.001,2787.0,2786.4,1.1454]
[1766091418924,0.579,2786.9,2786.1,0.46438023]
[1766091420652,0.579,2786.9,2785.9,3.4736]
[1766091420948,0.579,2786.9,2786.0,0.46438023]
[1766091421935,0.001,2787.0,2786.1,3.4473]
[1766091422144,0.579,2786.8,2786.3,2.3224]
[1766091422355,0.579,2786.8,2786.1,0.46438023]
[1766091422654,0.579,2786.8,2786.1,3.4473]
[1766091422950,0.579,2786.8,2786.0,2.3224]
[1766091423161,0.579,2786.8,2786.2,1.1249]
[1766091423364,0.579,2786.8,2785.9,1.59128023]
[1766091423732,3.58909428,2787.0,2785.9,1.1269]
[1766091423733,0.001,2787.0,2785.9,1.1269]
[1766091423969,0.001,2787.0,2786.1,0.46438023]
[1766091424131,0.001,2787.0,2786.3,0.86988423]
[1766091424331,0.579,2787.4,2786.4,0.44948718]
[1766091424553,0.579,2787.4,2786.4,3.4473]
[1766091424758,4.16664641,2787.4,2786.1,2.78678023]
[1766091425064,7.84360565,2787.4,2786.1,2.78678023]
[1766091425359,4.25595924,2787.4,2786.1,2.78678023]
[1766091425542,7.84360565,2787.4,2786.1,2.78678023]
[1766091425738,0.78436057,2787.3,2786.1,2.78678023]
[1766091425954,0.78436057,2787.3,2786.2,1.1249]
[1766091426465,3.67695924,2787.4,2786.1,2.78678023]
[1766091426466,0.579,2787.2,2786.1,2.78678023]
[1766091426675,3.67695924,2787.4,2786.2,1.1249]
[1766091426838,3.67695924,2787.4,2786.3,2.3224]
[1766091427035,1.04338023,2787.3,2786.3,3.4473]
[1766091427242,1.04338023,2787.3,2786.0,3.4473]
[1766091427446,4.50802954,2787.2,2786.1,0.84986063]
[1766091428486,8.09594766,2787.2,2786.0,2.3224]
[1766091428781,0.08931283,2787.0,2785.9,0.002]
[1766091429246,0.08931283,2786.8,2785.9,0.002]
[1766091429872,0.08931283,2786.8,2785.5,2.3244]
[1766091429873,7.26611141,2786.8,2785.5,2.3244]
[1766091430159,7.26611141,2786.8,2785.5,3.13371023]
[1766091430160,0.08931283,2786.6,2785.5,3.13371023]
[1766091431438,3.67742522,2787.0,2785.5,3.13371023]
[1766091431439,0.08931283,2787.4,2786.0,1.1249]
[1766091431670,0.579,2787.1,2786.5,1.1494]
[1766091431835,0.579,2787.1,2786.4,1.1249]
[1766091432640,0.579,2787.1,2786.0,1.1749]
[1766091432882,0.001,2787.2,2786.0,1.1749]
[1766091433172,0.579,2787.1,2786.2,1.1729]
[1766091433740,0.579,2787.1,2786.3,3.5444]
[1766091433940,0.579,2787.1,2786.4,2.72594]
[1766091434453,0.579,2787.1,2786.4,3.89884]
[1766091435055,0.579,2787.1,2786.4,2.72594]
[1766091436269,0.579,2787.1,2786.2,2.3715]
[1766091436574,4.16696756,2787.1,2786.2,2.3715]
[1766091436761,4.16696756,2787.1,2786.0,0.002]
[1766091437273,0.08931283,2786.6,2786.0,0.002]
[1766091437473,0.08931283,2786.6,2785.6,3.5444]
[1766091437660,0.08931283,2786.6,2785.7,0.46438023]
[1766091437661,0.579,2786.5,2785.7,0.46438023]
[1766091437851,0.579,2786.5,2785.6,3.89904]
[1766091437852,0.08931283,2786.8,2785.8,0.46438023]
[1766091438059,0.579,2786.4,2785.5,0.002]
[1766091438279,0.579,2786.4,2785.7,0.46438023]
[1766091438807,0.08931283,2786.8,2785.6,1.1729]
[1766091438954,0.579,2786.7,2785.6,2.3715]
[1766091439155,0.579,2786.7,2785.5,0.002]
[1766091439156,0.579,2786.7,2785.7,0.46438023]
[1766091439482,0.579,2786.6,2785.7,0.46438023]
[1766091439683,0.08931283,2786.8,2785.9,3.5444]
[1766091439861,0.579,2786.5,2785.9,3.5444]
[1766091440065,3.67730769,2787.1,2785.9,0.40087802]
[1766091440066,4.14171412,2787.1,2785.9,0.40087802]
[1766091440266,0.579,2787.0,2785.5,0.87188423]
[1766091440484,0.579,2787.0,2785.5,0.407504]
[1766091440679,0.579,2787.0,2786.0,1.1729]
[1766091440864,0.579,2787.0,2786.1,3.5444]
[1766091441068,0.579,2786.9,2786.1,3.5444]
[1766091441292,1.05107141,2786.9,2786.1,3.5444]
[1766091441487,0.47207141,2786.9,2786.1,3.5444]
[1766091441677,0.579,2786.8,2786.1,3.5444]
[1766091441862,4.16737924,2786.8,2785.8,0.46438023]
[1766091442066,4.16737924,2786.8,2785.8,2.83588023]
[1766091442413,1.35454973,2786.8,2785.8,2.83588023]
[1766091442609,1.35454973,2786.8,2785.5,0.002]
[1766091442610,0.08931283,2786.7,2785.5,0.002]
[1766091442763,0.08931283,2786.7,2785.5,0.46638023]
[1766091443296,0.08931283,2786.5,2785.5,0.46638023]
[1766091443654,0.08931283,2786.5,2785.6,2.83588023]
[1766091443860,0.08931283,2786.5,2785.6,1.63728023]
[1766091444097,0.46602692,2786.5,2785.6,1.63728023]
[1766091444259,4.05484219,2786.5,2785.6,1.63728023]
[1766091444459,0.46602692,2786.5,2785.6,1.63728023]
[1766091444992,4.05480666,2786.5,2785.6,1.63728023]
[1766091445297,0.46602692,2786.5,2785.6,1.63728023]
[1766091445706,0.579,2786.4,2785.6,1.63728023]
[1766091445889,0.579,2786.4,2785.7,0.46438023]
[1766091446201,0.579,2786.3,2785.9,2.3715]
[1766091446597,0.579,2786.2,2785.9,2.3715]
[1766091447300,0.579,2786.2,2785.6,0.40107802]
[1766091447502,0.579,2786.2,2785.7,0.46438023]
[1766091448899,0.579,2786.2,2785.9,0.002]
[1766091449936,0.579,2786.2,2785.7,0.46438023]
[1766091453192,0.579,2786.2,2785.5,0.002]
[1766091453693,0.99578808,2786.2,2785.5,2.83788023]
[1766091453909,0.579,2786.2,2785.5,2.83788023]
[1766091454278,0.579,2786.2,2785.5,0.002]
[1766091458009,0.579,2786.1,2785.5,0.002]
[1766091458317,0.579,2786.0,2785.5,0.002]
[1766091458886,0.579,2786.0,2785.5,2.3735]
[1766091459318,0.579,2786.0,2785.8,2.3715]
[1766091459490,0.579,2786.0,2785.5,2.3735]
[1766091460484,1.133,2786.3,2785.5,2.3735]
[1766091460725,0.579,2786.2,2785.5,2.3735]
[1766091462327,0.579,2786.1,2785.5,2.3735]
[1766091462532,0.579,2786.1,2785.6,2.4769]
[1766091462824,0.579,2786.0,2785.6,2.4769]
[1766091463209,0.579,2786.0,2785.5,0.002]
[1766091463393,1.7578,2786.0,2785.5,0.002]
[1766091465323,1.42620647,2786.0,2785.5,0.002]
[1766091465514,1.1788,2785.9,2785.1,1.70028023]
[1766091465822,1.1788,2785.9,2785.2,0.46438023]
[1766091466709,0.579,2786.0,2785.2,2.4769]
[1766091466914,0.579,2786.0,2785.5,2.4769]
[1766091467112,0.001,2786.8,2785.9,2.4769]
[1766091467311,0.001,2786.8,2786.4,3.7128]
[1766091467712,0.46538023,2787.2,2786.6,1.2359]
[1766091467713,0.001,2787.2,2786.6,1.2359]
[1766091467919,0.001,2787.2,2786.9,3.7128]
[1766091468105,0.09031283,2787.8,2787.3,1.2359]
[1766091468106,0.001,2787.8,2787.3,1.2359]
[1766091468434,0.58,2787.8,2787.0,1.70028023]
[1766091468635,1.1788,2787.7,2787.0,0.46438023]
[1766091468804,0.001,2787.8,2786.3,0.405504]
[1766091469009,0.579,2787.7,2786.7,2.4769]
[1766091469205,1.1788,2787.6,2786.7,2.4769]
[1766091470305,1.26811283,2787.6,2786.3,2.4769]
[1766091470500,1.1788,2787.3,2786.3,2.4769]
[1766091470697,0.46438023,2787.4,2786.3,2.4769]
[1766091470698,1.7578,2787.2,2786.3,2.4769]
[1766091470902,0.579,2787.2,2786.6,3.7128]
[1766091471120,0.08931283,2787.4,2786.6,3.7128]
[1766091471323,0.579,2787.1,2786.6,3.7128]
[1766091471530,1.1788,2787.0,2786.4,0.46438023]
[1766091471731,1.1788,2787.0,2785.8,0.579]
[1766091471932,1.1788,2787.0,2785.9,3.7128]
[1766091472102,1.1788,2787.0,2786.0,2.94128023]
[1766091472298,1.1788,2787.0,2785.6,1.2359]
[1766091472299,1.26811283,2787.0,2785.6,1.2359]
[1766091472498,1.1788,2786.8,2785.7,2.94128023]
[1766091472709,0.08931283,2787.0,2785.9,1.2359]
[1766091472911,0.08931283,2787.4,2785.8,0.86988423]
[1766091472912,0.579,2786.9,2785.8,0.86988423]
[1766091473122,0.579,2786.9,2785.9,1.00378704]
[1766091473123,1.1788,2786.8,2785.9,1.00378704]
[1766091473307,1.1788,2786.8,2785.7,3.7128]
[1766091473511,0.08931283,2786.7,2785.7,2.4769]
[1766091473710,1.1788,2786.6,2785.7,2.4769]
[1766091474024,1.1788,2786.6,2785.5,0.002]
[1766091474335,1.1788,2786.6,2785.5,3.7148]
[1766091474533,1.1788,2786.6,2785.6,0.46438023]
[1766091474838,1.1788,2786.4,2785.6,0.46438023]
[1766091475001,0.579,2786.3,2785.6,0.46438023]
[1766091475200,1.7578,2786.3,2785.6,0.46438023]
[1766091475911,1.7578,2786.3,2785.5,2.4789]
[1766091476102,1.1788,2786.2,2785.5,2.4789]
[1766091476709,1.75377451,2786.5,2785.6,2.94128023]
[1766091476918,0.579,2786.4,2785.6,2.94128023]
[1766091477145,1.41207745,2786.3,2785.5,0.002]
[1766091477314,1.41207745,2786.3,2785.5,2.4789]